bitfinex/quotes_SOLUSD_20260208
["timestamp","ask_amount","ask_price","bid_price","bid_amount"]
[1770539884530,13.63855622,88.5,88.49,0.2]
[1770539884716,13.63855622,88.51,88.471,0.88577748]
[1770539884916,11.29828605,88.509,88.478,0.88577748]
[1770539885113,13.63855622,88.5,88.461,0.88577748]
[1770539885314,14.47623705,88.49,88.451,0.88577748]
[1770539885513,67.82,88.508,88.463,0.88577748]
[1770539885514,0.83768083,88.507,88.463,0.88577748]
[1770539885709,13.63855622,88.48,88.438,0.73933637]
[1770539885924,13.63855622,88.49,88.451,0.73933637]
[1770539886125,13.63855622,88.49,88.45,13.63855622]
[1770539886126,13.63855622,88.49,88.461,0.73933637]
[1770539886313,13.63855622,88.48,88.44,14.37789259]
[1770539886519,13.63855622,88.46,88.425,0.73933637]
[1770539886909,11.30467222,88.459,88.425,0.73933637]
[1770539887313,13.63855622,88.47,88.431,0.73933637]
[1770539887713,11.30211688,88.479,88.431,0.73933637]
[1770539887919,13.63855622,88.49,88.45,13.63855622]
[1770539888224,0.78473749,88.479,88.441,0.73933637]
[1770539888423,13.63855622,88.5,88.461,0.73933637]
[1770539888631,11.29943477,88.501,88.461,0.73933637]
[1770539889010,11.29943477,88.501,88.463,0.73933637]
[1770539889408,13.63855622,88.51,88.471,0.73933637]
[1770539889611,13.63855622,88.51,88.462,11.30428884]
[1770539889612,0.78473749,88.514,88.481,0.73933637]
[1770539889811,13.63855622,88.5,88.469,0.73933637]
[1770539890008,13.63855622,88.49,88.458,0.73933637]
[1770539890213,13.63855622,88.47,88.436,0.73933637]
[1770539890518,13.63855622,88.47,88.44,11.3070401]
[1770539890720,0.78473749,88.469,88.426,0.73933637]
[1770539890926,0.78473749,88.479,88.431,0.73933637]
[1770539891116,11.30083965,88.489,88.441,0.73933637]
[1770539891317,24.93799124,88.5,88.461,0.73933637]
[1770539891615,14.42329371,88.5,88.461,0.73933637]
[1770539891816,11.29869288,88.506,88.461,0.73933637]
[1770539892128,13.63855622,88.5,88.461,0.73933637]
[1770539892327,13.63855622,88.48,88.45,0.73933637]
[1770539892513,0.783604,88.49,88.45,0.73933637]
[1770539892514,14.42216022,88.49,88.45,0.73933637]
[1770539892711,13.63855622,88.5,88.461,0.73933637]
[1770539893114,13.63855622,88.5,88.46,13.63855622]
[1770539893115,13.63855622,88.49,88.459,11.30461613]
[1770539893438,0.783604,88.498,88.462,11.30428884]
[1770539893733,13.63855622,88.49,88.451,0.73933637]
[1770539894110,13.63855622,88.49,88.459,11.30458129]
[1770539894522,0.783604,88.498,88.462,11.30428884]
[1770539894716,13.63855622,88.49,88.456,11.30496994]
[1770539895732,13.63855622,88.49,88.452,0.7250555]
[1770539896133,11.29842268,88.508,88.461,0.7250555]
[1770539896335,0.72331355,88.507,88.461,0.7250555]
[1770539896536,0.72331355,88.529,88.481,0.7250555]
[1770539896921,13.63855622,88.52,88.481,0.7250555]
[1770539897540,25.65878235,88.52,88.482,11.30173368]
[1770539897829,0.72331355,88.519,88.482,11.30173368]
[1770539898221,14.36186977,88.51,88.481,11.3017599]
[1770539898436,67.82,88.519,88.481,11.3017599]
[1770539898649,0.72331355,88.518,88.481,11.3017599]
[1770539899333,0.72331355,88.518,88.481,39.55641344]
[1770539899531,28.23528829,88.542,88.481,39.55641344]
[1770539899532,67.82,88.526,88.481,39.55641344]
[1770539899839,0.72331355,88.519,88.481,11.3017599]
[1770539900030,0.72331355,88.518,88.481,11.3017599]
[1770539900619,0.72331355,88.518,88.481,12.0268154]
[1770539901144,0.72331355,88.518,88.482,0.7250555]
[1770539901547,67.82,88.524,88.501,0.7250555]
[1770539901728,67.82,88.524,88.5,13.63855622]
[1770539901729,67.82,88.524,88.503,0.7250555]
[1770539902233,67.82,88.536,88.503,0.7250555]
[1770539902545,0.72331355,88.535,88.503,0.7250555]
[1770539902735,67.82,88.529,88.503,0.7250555]
[1770539902941,13.63855622,88.52,88.491,0.7250555]
[1770539903134,68.54331355,88.509,88.486,11.30112465]
[1770539903335,68.54331355,88.509,88.477,0.7250555]
[1770539903336,0.72331355,88.518,88.495,11.30001769]
[1770539903535,0.72331355,88.518,88.5,11.29938359]
[1770539903735,0.72331355,88.508,88.482,11.30173368]
[1770539904148,0.72331355,88.529,88.491,0.7250555]
[1770539904345,0.72331355,88.528,88.491,0.7250555]
[1770539905745,0.72331355,88.528,88.493,0.7250555]
[1770539907851,68.54331355,88.528,88.495,0.7250555]
[1770539908232,0.72331355,88.527,88.49,13.63855622]
[1770539908434,0.72331355,88.554,88.52,13.63855622]
[1770539908744,0.72331355,88.553,88.52,13.63855622]
[1770539908927,68.54331355,88.549,88.51,13.63855622]
[1770539909131,0.72331355,88.538,88.49,13.63855622]
[1770539909347,0.72331355,88.538,88.5,13.63855622]
[1770539909549,0.72331355,88.538,88.494,39.55070399]
[1770539909852,68.54331355,88.536,88.494,39.55070399]
[1770539910249,0.72331355,88.519,88.459,0.7250555]
[1770539910445,0.72331355,88.518,88.483,11.30153148]
[1770539910756,0.72331355,88.518,88.487,11.30101247]
[1770539911551,0.72331355,88.518,88.454,56.52626571]
[1770539911552,67.82,88.518,88.492,0.7250555]
[1770539911938,67.82,88.518,88.493,11.30032883]
[1770539912150,67.82,88.518,88.494,0.7250555]
[1770539912546,0.72331355,88.528,88.494,0.7250555]
[1770539913642,0.72331355,88.528,88.493,11.30032883]
[1770539913842,13.67877877,88.53,88.481,28.25442826]
[1770539913843,0.72331355,88.525,88.486,12.02627829]
[1770539914148,0.72331355,88.519,88.487,0.7250555]
[1770539914352,0.72331355,88.508,88.464,0.7250555]
[1770539914554,67.82,88.509,88.391,45.25324236]
[1770539914555,67.82,88.509,88.474,0.7250555]
[1770539914753,0.72331355,88.528,88.49,13.67877877]
[1770539915237,67.82,88.529,88.5,13.67877877]
[1770539915437,0.72331355,88.528,88.49,13.67877877]
[1770539915851,0.72331355,88.528,88.491,11.30058424]
[1770539916046,0.72331355,88.528,88.491,39.55204484]
[1770539916459,0.71409129,88.538,88.5,13.67877877]
[1770539916761,0.71409129,88.538,88.491,39.55204484]
[1770539917057,67.82,88.539,88.454,5.13032502]
[1770539917058,11.29490605,88.536,88.5,13.67877877]
[1770539917355,0.71409129,88.535,88.5,13.67877877]
[1770539917559,0.71409129,88.535,88.49,13.67877877]
[1770539917853,0.71409129,88.535,88.5,13.67877877]
[1770539918758,0.71409129,88.535,88.469,5.13032502]
[1770539918954,0.71409129,88.529,88.49,13.67877877]
[1770539919352,0.71409129,88.528,88.5,13.67877877]
[1770539919565,0.71409129,88.534,88.5,13.67877877]
[1770539920247,13.67877877,88.56,88.52,13.67877877]
[1770539920760,67.82,88.578,88.54,14.35545159]
[1770539920946,67.82,88.578,88.54,13.67877877]
[1770539921362,67.82,88.579,88.541,11.29420268]
[1770539921757,67.82,88.579,88.541,39.52970939]
[1770539922058,0.1,88.58,88.57,13.67877877]
[1770539922254,0.69488819,88.624,88.571,0.57180846]
[1770539922453,0.69488819,88.624,88.6,13.67877877]
[1770539922642,0.69488819,88.624,88.59,13.67877877]
[1770539923042,0.69488819,88.624,88.6,13.67877877]
[1770539923449,0.69488819,88.624,88.601,11.28655432]
[1770539923652,0.1,88.63,88.61,13.67877877]
[1770539924051,0.1,88.63,88.601,39.50294013]
[1770539924360,0.69488819,88.629,88.601,11.28655432]
[1770539924567,0.1,88.63,88.601,11.28655432]
[1770539924767,0.1,88.63,88.61,13.67877877]
[1770539925063,0.1,88.63,88.602,0.56299449]
[1770539925243,0.69488819,88.629,88.596,11.28718885]
[1770539925446,0.69488819,88.629,88.591,11.28782833]
[1770539925952,0.69488819,88.627,88.591,11.28782833]
[1770539926564,0.69488819,88.619,88.586,11.28845319]
[1770539926757,0.69488819,88.619,88.591,11.28782833]
[1770539926964,0.69488819,88.619,88.585,11.28852951]
[1770539927267,0.69488819,88.619,88.591,11.28782833]
[1770539927644,0.69488819,88.619,88.583,11.28884774]
[1770539928665,13.67877877,88.61,88.583,11.28884774]
[1770539928853,14.37366696,88.61,88.583,11.28884774]
[1770539929870,0.69488819,88.608,88.574,11.2899948]
[1770539931068,11.97920356,88.619,88.581,0.53774219]
[1770539931367,13.67877877,88.61,88.581,0.53774219]
[1770539931869,0.69488819,88.609,88.575,11.28981893]
[1770539932254,0.69488819,88.609,88.58,11.28912726]
[1770539932566,0.69488819,88.609,88.582,11.28897518]
[1770539933163,68.51488819,88.609,88.577,11.28958889]
[1770539933365,68.51488819,88.609,88.581,11.28902214]
[1770539933366,0.69488819,88.608,88.581,11.28902214]
[1770539933870,0.69488819,88.624,88.59,13.67877877]
[1770539934072,0.69488819,88.619,88.582,0.52575745]
[1770539934868,0.69488819,88.618,88.582,0.52575745]
[1770539935373,0.69488819,88.618,88.58,13.67877877]
[1770539935758,0.69488819,88.618,88.582,11.28897518]
[1770539935958,0.69488819,88.618,88.583,0.51799529]
[1770539937752,0.69488819,88.618,88.591,11.28782833]
[1770539938866,0.1,88.63,88.61,13.67877877]
[1770539939252,0.69488819,88.657,88.621,0.5066832]
[1770539939565,0.69488819,88.649,88.61,13.67877877]
[1770539939752,0.69488819,88.649,88.61,14.18177756]
[1770539939947,0.69488819,88.648,88.611,11.2852806]
[1770539940150,68.51488819,88.657,88.62,14.17813547]
[1770539940350,13.67877877,88.74,88.64,13.67877877]
[1770539940351,0.69488819,88.666,88.64,13.67877877]
[1770539941867,0.69488819,88.666,88.641,11.28146117]
[1770539942177,11.27722369,88.675,88.641,11.28146117]
[1770539942360,11.27722369,88.675,88.636,11.28201446]
[1770539942361,0.69488819,88.669,88.636,11.28201446]
[1770539942559,0.69488819,88.669,88.64,24.96027564]
[1770539943156,0.69488819,88.669,88.64,11.28149687]
[1770539943379,0.69488819,88.669,88.64,24.96027564]
[1770539943995,0.69488819,88.681,88.651,11.2801886]
[1770539944169,0.69488819,88.69,88.652,0.48867951]
[1770539944375,0.69488819,88.688,88.652,0.48867951]
[1770539945279,0.69488819,88.688,88.651,11.2801886]
[1770539945676,67.82,88.699,88.653,0.47836603]
[1770539945875,67.82,88.699,88.651,39.48066011]
[1770539945876,0.63298086,88.728,88.651,84.60141453]
[1770539946072,0.64622866,88.709,88.67,13.67877877]
[1770539946275,0.64622866,88.709,88.68,13.67877877]
[1770539946665,0.1,88.71,88.69,13.67877877]
[1770539947060,0.1,88.71,88.651,84.60141453]
[1770539947266,0.1,88.71,88.69,13.67877877]
[1770539947584,0.64622866,88.749,88.7,13.67877877]
[1770539947759,0.64622866,88.758,88.71,13.67877877]
[1770539947956,14.32500743,88.75,88.711,11.2725592]
[1770539948178,14.32500743,88.75,88.7,28.18467324]
[1770539948179,11.26773259,88.749,88.705,11.27323782]
[1770539948375,0.64622866,88.739,88.709,11.27270214]
[1770539948682,0.64622866,88.748,88.711,11.2725592]
[1770539949708,14.32500743,88.74,88.711,11.2725592]
[1770539949867,0.64622866,88.739,88.711,11.2725592]
[1770539950056,0.64622866,88.739,88.7,41.86345201]
[1770539950057,13.67877877,88.73,88.696,11.27434743]
[1770539950260,14.32500743,88.73,88.696,11.27434743]
[1770539950561,14.32500743,88.73,88.641,56.62985277]
[1770539950562,0.64622866,88.709,88.66,13.67877877]
[1770539950772,0.64622866,88.699,88.652,11.28006136]
[1770539950976,0.64622866,88.699,88.66,13.67877877]
[1770539951278,0.64622866,88.699,88.67,13.67877877]
[1770539952079,0.64622866,88.699,88.66,13.67877877]
[1770539952288,0.64622866,88.699,88.661,11.27891632]
[1770539953163,13.67877877,88.69,88.655,11.27957503]
[1770539953359,0.64622866,88.689,88.65,13.67877877]
[1770539953584,0.64622866,88.689,88.655,11.27965284]
[1770539953959,0.64622866,88.689,88.66,11.27892044]
[1770539954159,0.64622866,88.689,88.65,13.67877877]
[1770539954386,0.64622866,88.687,88.646,11.28080716]
[1770539954686,0.64622866,88.679,88.63,13.67877877]
[1770539954978,0.64622866,88.679,88.647,11.28064007]
[1770539955182,0.64622866,88.679,88.651,11.2801886]
[1770539955488,0.64622866,88.689,88.66,13.67877877]
[1770539956685,0.64622866,88.7,88.67,13.67877877]
[1770539956903,0.64622866,88.7,88.661,11.27891632]
[1770539957581,0.64622866,88.7,88.661,39.47620712]
[1770539957884,13.67877877,88.7,88.661,39.47620712]
[1770539958098,0.64622866,88.699,88.661,39.47620712]
[1770539958283,0.64622866,88.689,88.656,11.27945623]
[1770539958468,0.64622866,88.689,88.66,13.67877877]
[1770539960073,0.64622866,88.689,88.65,13.67877877]
[1770539960391,0.64622866,88.687,88.65,13.67877877]
[1770539960698,0.64622866,88.687,88.651,11.2801886]
[1770539961390,67.82,88.721,88.646,11.28075965]
[1770539961391,0.64622866,88.679,88.646,11.28075965]
[1770539962672,0.64622866,88.679,88.64,13.67877877]
[1770539962673,0.64622866,88.679,88.651,11.2801886]
[1770539963697,0.64622866,88.677,88.641,11.28146117]
[1770539964074,0.64622866,88.669,88.63,41.88586638]
[1770539965997,0.64622866,88.667,88.631,11.28273403]
[1770539966699,0.64622866,88.667,88.63,13.67877877]
[1770539966876,11.27802589,88.668,88.626,11.28332598]
[1770539966877,0.64622866,88.659,88.626,11.28332598]
[1770539967277,0.64622866,88.659,88.631,11.28273403]
[1770539967577,0.64622866,88.657,88.621,11.28400717]
[1770539968303,0.64622866,88.656,88.621,11.28400717]
[1770539968788,11.27873116,88.663,88.621,11.28400717]
[1770539968996,0.64622866,88.665,88.64,13.67877877]
[1770539969187,33.89,88.745,88.621,39.49402511]
[1770539969188,0.64622866,88.687,88.65,13.67877877]
[1770539969507,0.64622866,88.687,88.651,11.2801886]
[1770539969706,0.64622866,88.685,88.651,11.2801886]
[1770539970304,11.27573686,88.686,88.621,56.42003588]
[1770539970305,0.64622866,88.679,88.646,11.28077697]
[1770539970706,0.64622866,88.679,88.64,13.67877877]
[1770539970899,0.64622866,88.679,88.645,11.28090717]
[1770539971207,0.64622866,88.679,88.638,11.28174997]
[1770539971426,11.27675409,88.678,88.631,11.28273403]
[1770539971713,0.64622866,88.677,88.64,13.63094615]
[1770539972395,0.64622866,88.677,88.631,39.48956911]
[1770539973292,0.64622866,88.677,88.631,11.28273403]
[1770539973603,0.64622866,88.675,88.631,39.48956911]
[1770539973795,0.64622866,88.675,88.64,13.63094615]
[1770539974196,0.64622866,88.684,88.65,13.63094615]
[1770539974400,0.64622866,88.682,88.64,13.63094615]
[1770539974703,0.64622866,88.679,88.64,13.63094615]
[1770539974890,0.64622866,88.679,88.65,13.63094615]
[1770539975290,0.64622866,88.679,88.64,13.63094615]
[1770539975687,0.64622866,88.679,88.65,13.63094615]
[1770539977294,0.64622866,88.677,88.65,13.63094615]
[1770539977604,0.64622866,88.685,88.66,13.63094615]
[1770539978111,0.64622866,88.679,88.64,13.63094615]
[1770539978315,11.27,88.694,88.63,13.63094615]
[1770539978316,0.64622866,88.668,88.63,13.63094615]
[1770539978616,0.64622866,88.649,88.61,13.63094615]
[1770539980106,0.64622866,88.649,88.611,11.2852806]
[1770539980107,11.28054736,88.649,88.611,11.2852806]
[1770539980304,11.28054736,88.649,88.6,13.63094615]
[1770539980305,0.64622866,88.639,88.6,13.63094615]
[1770539980616,0.64622866,88.648,88.62,13.63094615]
[1770539981406,0.64622866,88.669,88.63,13.63094615]
[1770539982292,0.64622866,88.668,88.631,11.28273403]
[1770539982492,0.64622866,88.659,88.623,11.2836678]
[1770539982816,0.64622866,88.649,88.621,11.28399992]
[1770539983812,0.64622866,88.647,88.611,11.2852806]
[1770539985316,0.64622866,88.645,88.611,11.2852806]
[1770539985612,0.64622866,88.639,88.607,11.2857821]
[1770539986415,0.64622866,88.639,88.59,13.63094615]
[1770539986609,0.64622866,88.629,88.598,11.28685739]
[1770539987523,0.64622866,88.629,88.591,11.28782833]
[1770539988014,0.64622866,88.654,88.62,13.63094615]
[1770539988213,0.64622866,88.649,88.61,13.63094615]
[1770539989426,0.64622866,88.647,88.611,11.2852806]
[1770539989810,0.64622866,88.647,88.62,13.63094615]
[1770539990722,0.64622866,88.645,88.61,13.63094615]
[1770539990928,0.64622866,88.629,88.599,11.28679168]
[1770539991609,0.64622866,88.629,88.593,11.28753071]
[1770539991928,0.64622866,88.609,88.561,28.2288324]
[1770539992106,0.64622866,88.599,88.568,11.29065431]
[1770539992306,0.64622866,88.599,88.547,28.23335505]
[1770539992615,0.64622866,88.599,88.56,13.63094615]
[1770539992928,0.64622866,88.597,88.559,11.29187338]
[1770539993127,0.64622866,88.597,88.561,11.29165208]
[1770539993312,0.64622866,88.589,88.555,11.29239346]
[1770539993507,0.64622866,88.579,88.555,11.29239346]
[1770539994010,0.64622866,88.579,88.543,11.29388809]
[1770539994213,0.64622866,88.579,88.547,11.29342913]
[1770539994409,0.64622866,88.579,88.542,11.29399994]
[1770539994928,0.64622866,88.579,88.504,5.13032502]
[1770539994929,0.64622866,88.569,88.535,11.29484288]
[1770539995612,0.64622866,88.569,88.53,13.63094615]
[1770539995814,0.64622866,88.559,88.52,13.63094615]
[1770539996018,0.64622866,88.559,88.521,11.29664805]
[1770539996218,0.64622866,88.549,88.521,11.29664805]
[1770539996414,0.64622866,88.549,88.482,56.50848797]
[1770539996727,0.64622866,88.537,88.501,11.29930735]
[1770539997524,13.63094615,88.53,88.501,11.29930735]
[1770539997720,0.64622866,88.529,88.49,0.2]
[1770539997925,0.64622866,88.519,88.491,11.30049175]
[1770539998126,0.64622866,88.537,88.501,11.29930735]
[1770539998432,11.29458537,88.538,88.49,0.2]
[1770539998433,0.64622866,88.519,88.49,0.2]
[1770539998808,0.64622866,88.509,88.49,0.2]
[1770539999319,0.64622866,88.518,88.49,13.83094615]
[1770539999631,0.64622866,88.528,88.5,13.63094615]
[1770540000128,0.64622866,88.528,88.51,13.63094615]
[1770540000333,13.63094615,88.56,88.52,14.13610289]
[1770540000514,11.29117357,88.565,88.521,0.50515674]
[1770540000714,11.29117357,88.565,88.53,13.63094615]
[1770540000915,13.63094615,88.54,88.5,13.63094615]
[1770540001232,13.63094615,88.54,88.509,11.29824045]
[1770540001430,11.29117357,88.565,88.49,0.2]
[1770540001431,13.63094615,88.53,88.49,0.2]
[1770540001631,13.63094615,88.52,88.49,11.50062228]
[1770540001827,13.63094615,88.51,88.49,0.2]
[1770540002216,13.63094615,88.5,88.469,11.30330189]
[1770540002411,0.54910925,88.499,88.464,11.30397371]
[1770540002914,0.54910925,88.497,88.461,11.30441663]
[1770540003113,0.54910925,88.489,88.46,11.30444416]
[1770540003316,0.54910925,88.489,88.442,0.5]
[1770540003522,0.54910925,88.479,88.448,11.30607536]
[1770540004028,0.54910925,88.479,88.457,11.30484112]
[1770540004235,0.54910925,88.479,88.452,11.30551483]
[1770540004728,13.63094615,88.51,88.461,0.58491942]
[1770540005034,13.63094615,88.5,88.451,0.58491942]
[1770540005413,13.63094615,88.47,88.432,0.58491942]
[1770540005635,13.63094615,88.49,88.45,13.63094615]
[1770540005815,13.63094615,88.49,88.443,11.30668086]
[1770540006138,13.63094615,88.48,88.43,0.5541213]
[1770540006325,13.63094615,88.47,88.436,11.30751717]
[1770540006637,13.63094615,88.49,88.45,13.63094615]
[1770540006936,0.52463655,88.489,88.45,13.63094615]
[1770540007135,0.52463655,88.479,88.442,11.30684516]
[1770540008442,0.52463655,88.469,88.43,13.63094615]
[1770540008629,0.52463655,88.469,88.441,11.30688469]
[1770540011628,0.52463655,88.478,88.45,13.63094615]
[1770540012025,0.52463655,88.478,88.441,11.30688469]
[1770540012726,13.63094615,88.47,88.432,0.5541213]
[1770540012931,0.52463655,88.469,88.43,13.63094615]
[1770540013133,0.52463655,88.469,88.441,11.30697301]
[1770540013432,0.52463655,88.449,88.417,11.30998565]
[1770540013738,0.52463655,88.449,88.42,13.83094615]
[1770540014036,0.52463655,88.449,88.42,0.2]
[1770540014236,0.52463655,88.439,88.391,11.313369]
[1770540014437,0.52463655,88.439,88.41,13.63094615]
[1770540014841,0.52463655,88.439,88.4,13.63094615]
[1770540015345,13.63094615,88.44,88.359,15.17038483]
[1770540015346,0.5530782,88.437,88.394,11.31297996]
[1770540015648,0.5530782,88.43,88.41,13.63094615]
[1770540015845,0.5530782,88.43,88.401,11.31208922]
[1770540016245,0.5530782,88.43,88.396,11.31271604]
[1770540016442,0.5530782,88.429,88.39,0.64625264]
[1770540016648,0.5530782,88.419,88.39,0.64625264]
[1770540017145,0.5530782,88.409,88.39,0.64625264]
[1770540017351,0.5530782,88.399,88.363,0.53669642]
[1770540017556,0.5530782,88.399,88.372,11.31571208]
[1770540017931,0.5530782,88.409,88.38,14.16764257]
[1770540018128,0.5530782,88.409,88.383,11.31428136]
[1770540018451,0.5530782,88.419,88.39,13.63094615]
[1770540018629,0.5530782,88.419,88.391,11.85006542]
[1770540019149,0.5530782,88.428,88.401,0.53669642]
[1770540019334,0.5530782,88.428,88.402,11.31196126]
[1770540019536,13.63094615,88.45,88.41,14.16764257]
[1770540019732,13.63094615,88.45,88.411,0.53669642]
[1770540019930,11.30518342,88.455,88.411,0.53669642]
[1770540020154,13.63094615,88.44,88.402,11.31196126]
[1770540020537,13.63094615,88.44,88.401,0.53669642]
[1770540020735,13.63094615,88.44,88.397,11.31253638]
[1770540020938,67.82,88.454,88.401,11.31203733]
[1770540021241,13.63094615,88.43,88.392,0.53669642]
[1770540021439,13.63094615,88.43,88.394,0.53669642]
[1770540021755,0.42425384,88.43,88.394,0.53669642]
[1770540021950,0.42425384,88.429,88.393,11.31311302]
[1770540022137,0.42425384,88.429,88.393,11.84980944]
[1770540022649,0.42292076,88.437,88.401,0.53669642]
[1770540023347,0.42160299,88.429,88.392,0.53669642]
[1770540023548,0.42160299,88.429,88.395,0.53669642]
[1770540023752,0.42160299,88.429,88.399,0.53669642]
[1770540024244,0.42160299,88.429,88.381,0.53669642]
[1770540024451,0.42030035,88.419,88.385,11.314048]
[1770540024749,0.42030035,88.419,88.381,0.53669642]
[1770540024951,0.42030035,88.419,88.387,11.3138461]
[1770540025146,0.42030035,88.419,88.399,11.31225647]
[1770540025345,0.42030035,88.419,88.392,11.31324101]
[1770540025930,0.41901268,88.428,88.393,0.53669642]
[1770540026139,11.30731815,88.439,88.41,14.16764257]
[1770540026449,0.41901268,88.444,88.411,0.53669642]
[1770540026634,11.72113419,88.469,88.421,0.53669642]
[1770540026834,0.41773979,88.468,88.43,13.63094615]
[1770540027035,0.41773979,88.468,88.431,0.53669642]
[1770540027344,0.41773979,88.468,88.44,13.63094615]
[1770540027652,0.41648153,88.492,88.46,13.63094615]
[1770540027855,0.41648153,88.489,88.451,0.53669642]
[1770540028635,11.30044299,88.493,88.451,0.53669642]
[1770540028963,0.41523772,88.509,88.471,0.53669642]
[1770540029758,0.41523772,88.509,88.46,13.63094615]
[1770540029759,14.04495435,88.5,88.462,0.53669642]
[1770540030347,0.41279279,88.507,88.471,11.30303768]
[1770540030661,13.63094615,88.5,88.467,0.53669642]
[1770540031037,0.41279279,88.507,88.467,0.53669642]
[1770540031237,39.54444795,88.508,88.46,13.63094615]
[1770540031238,0.41159135,88.499,88.46,13.63094615]
[1770540031537,0.41159135,88.499,88.455,0.53669642]
[1770540031741,0.41159135,88.497,88.46,13.63094615]
[1770540031943,11.29908147,88.503,88.471,0.53669642]
[1770540032542,0.41040371,88.528,88.491,0.53669642]
[1770540032750,0.1,88.53,88.501,0.53669642]
[1770540033136,11.2957336,88.529,88.501,0.53669642]
[1770540033340,0.40922971,88.528,88.489,0.53669642]
[1770540033539,0.40922971,88.509,88.471,0.53669642]
[1770540033739,0.40922971,88.509,88.441,5.13032502]
[1770540033740,0.40922971,88.518,88.48,13.67824488]
[1770540033960,0.40922971,88.518,88.478,0.53669642]
[1770540034258,0.40922971,88.518,88.48,13.67824488]
[1770540034460,0.40922971,88.518,88.481,0.53669642]
[1770540035860,11.29726493,88.517,88.483,0.50140986]
[1770540036159,0.405788,88.516,88.483,0.50140986]
[1770540036545,13.67824488,88.51,88.483,0.50140986]
[1770540036747,0.405788,88.516,88.483,0.50140986]
[1770540037261,13.67824488,88.5,88.474,0.50140986]
[1770540037458,39.54042726,88.517,88.474,0.50140986]
[1770540037459,11.29726493,88.517,88.474,0.50140986]
[1770540037663,11.70082383,88.517,88.478,0.50140986]
[1770540037866,0.4035589,88.516,88.478,0.50140986]
[1770540038060,0.4035589,88.528,88.491,0.50140986]
[1770540038268,13.67824488,88.52,88.491,0.50140986]
[1770540038564,11.2957336,88.529,88.481,11.30181147]
[1770540038565,13.67824488,88.51,88.481,11.80322133]
[1770540039159,0.40246352,88.509,88.475,11.30258578]
[1770540039457,0.40246352,88.509,88.476,0.50140986]
[1770540040256,0.40246352,88.509,88.47,13.67824488]
[1770540040257,0.40138072,88.499,88.465,0.50140986]
[1770540042566,0.39820637,88.497,88.465,0.50140986]
[1770540042755,0.39820637,88.497,88.467,0.50140986]
[1770540042951,0.1,88.53,88.471,0.50140986]
[1770540042952,11.29854328,88.507,88.471,0.50140986]
[1770540043269,11.29716136,88.518,88.481,0.50140986]
[1770540043652,0.39717247,88.517,88.481,0.50140986]
[1770540044364,13.67824488,88.51,88.481,0.50140986]
[1770540044750,0.39615045,88.509,88.472,11.80440145]
[1770540045067,14.07439533,88.5,88.464,0.50140986]
[1770540045368,0.39514016,88.499,88.464,0.50140986]
[1770540046071,0.39514016,88.509,88.473,11.30276024]
[1770540046867,13.67824488,88.48,88.451,0.50140986]
[1770540047754,13.67824488,88.47,88.441,11.30692541]
[1770540047951,0.39315426,88.479,88.441,0.50140986]
[1770540048455,0.39315426,88.479,88.449,11.30591184]
[1770540048656,0.39217839,88.489,88.45,14.17965474]
[1770540048852,24.97896909,88.49,88.452,11.30556686]
[1770540049051,0.39217839,88.489,88.453,0.50140986]
[1770540049865,11.69013806,88.504,88.453,0.50140986]
[1770540050071,0.39121372,88.499,88.453,0.50140986]
[1770540050264,13.67824488,88.5,88.461,0.50140986]
[1770540051171,13.67824488,88.5,88.46,13.67824488]
[1770540051172,11.2995627,88.499,88.463,0.50140986]
[1770540052171,11.2995627,88.499,88.465,0.50140986]
[1770540053769,0.3874646,88.489,88.455,0.50140986]
[1770540053971,0.3874646,88.489,88.456,11.30501414]
[1770540054170,0.3874646,88.489,88.457,0.50140986]
[1770540054375,0.38655407,88.498,88.463,11.30415815]
[1770540054772,0.38655407,88.498,88.464,0.50140986]
[1770540054972,11.68655407,88.498,88.464,0.50140986]
[1770540055670,13.67824488,88.49,88.464,0.50140986]
[1770540055877,13.67824488,88.49,88.465,11.30390549]
[1770540056077,0.38565401,88.496,88.466,0.50140986]
[1770540056283,0.38476428,88.488,88.449,0.50140986]
[1770540056465,11.68458235,88.497,88.461,0.50140986]
[1770540056779,11.29981807,88.497,88.465,0.50140986]
[1770540057684,11.29981807,88.497,88.466,11.30377772]
[1770540058372,67.82,88.496,88.466,11.30377772]
[1770540058571,67.82,88.515,88.481,0.50140986]
[1770540058754,13.67824488,88.51,88.481,0.50140986]
[1770540058957,67.82,88.515,88.481,0.50140986]
[1770540059362,13.67824488,88.52,88.491,0.50140986]
[1770540059562,13.67824488,88.52,88.493,0.50140986]
[1770540059980,67.82,88.536,88.493,0.50140986]
[1770540060153,11.39565692,88.53,88.493,0.50140986]
[1770540060360,25.0739018,88.53,88.493,0.50140986]
[1770540061478,0.38046662,88.529,88.493,0.50140986]
[1770540061880,0.38046662,88.519,88.481,0.50140986]
[1770540062078,0.38046662,88.519,88.482,0.50140986]
[1770540062278,13.67824488,88.49,88.463,0.50140986]
[1770540062580,13.67824488,88.48,88.454,0.50140986]
[1770540062974,13.67824488,88.47,88.444,0.50140986]
[1770540063178,13.67824488,88.47,88.445,11.30645571]
[1770540063376,13.67824488,88.47,88.444,0.50140986]